bitfinex/quotes_SOLUSD_20230905
["timestamp","ask_amount","ask_price","bid_price","bid_amount"]
[1693899053651,59.40767567,19.356,19.346,8.063]
[1693899053855,63.059,19.356,19.346,8.063]
[1693899054355,90.3937,19.355,19.346,8.063]
[1693899054542,63.06,19.354,19.346,8.063]
[1693899058153,2.19509721,19.353,19.346,8.063]
[1693899058348,10.25509721,19.353,19.346,8.063]
[1693899058552,63.061,19.352,19.346,8.063]
[1693899058735,8.061,19.352,19.346,8.063]
[1693899061053,55.0,19.351,19.346,8.063]
[1693899061851,63.061,19.351,19.346,8.063]
[1693899062044,55.0,19.351,19.346,8.063]
[1693899062755,55.0,19.352,19.346,8.063]
[1693899069961,8.06,19.355,19.346,8.063]
[1693899070158,55.0,19.354,19.346,8.063]
[1693899070348,63.06,19.354,19.346,8.063]
[1693899073955,2.03727608,19.353,19.346,8.063]
[1693899074350,8.061,19.352,19.346,8.063]
[1693899074552,55.0,19.351,19.346,8.063]
[1693899076858,63.061,19.352,19.346,8.063]
[1693899079568,63.061,19.352,19.345,8.064]
[1693899082165,63.061,19.352,19.342,26.056]
[1693899082361,63.061,19.352,19.342,8.065]
[1693899082562,1.9651412,19.351,19.342,8.065]
[1693899082762,8.062,19.349,19.342,8.065]
[1693899082963,55.0,19.348,19.342,8.065]
[1693899083155,8.063,19.347,19.342,8.065]
[1693899084567,55.0,19.346,19.336,8.067]
[1693899084768,8.064,19.343,19.336,8.067]
[1693899087284,55.0,19.342,19.336,8.067]
[1693899087466,8.065,19.341,19.336,8.067]
[1693899088170,63.065,19.342,19.336,8.067]
[1693899092769,55.0,19.342,19.336,8.067]
[1693899095062,8.064,19.343,19.336,8.067]
[1693899095291,82.913,19.346,19.336,64.955]
[1693899095292,2.5859806,19.346,19.336,64.955]
[1693899095464,90.1166,19.347,19.336,64.955]
[1693899095983,1.97265997,19.349,19.336,64.955]
[1693899096175,8.063,19.347,19.336,64.455]
[1693899096679,55.0,19.346,19.336,64.455]
[1693899098876,63.063,19.346,19.336,64.455]
[1693899107379,63.063,19.346,19.336,63.955]
[1693899110675,1.95031839,19.345,19.336,63.955]
[1693899110878,8.064,19.345,19.336,63.955]
[1693899111492,8.064,19.345,19.332,8.069]
[1693899111690,57.69498165,19.344,19.332,8.069]
[1693899111901,8.066,19.341,19.332,8.069]
[1693899112481,8.066,19.341,19.331,15.68097207]
[1693899112681,8.066,19.341,19.332,8.069]
[1693899124199,55.0,19.344,19.332,8.069]
[1693899124392,102.854,19.348,19.332,8.069]
[1693899124393,55.0,19.343,19.332,8.069]
[1693899124597,55.0,19.345,19.332,8.069]
[1693899125701,63.064,19.345,19.332,8.069]
[1693899126589,2.13309177,19.344,19.332,8.069]
[1693899126794,10.19709177,19.344,19.332,8.069]
[1693899127104,55.0,19.343,19.332,8.069]
[1693899132106,63.065,19.343,19.332,8.069]
[1693899133295,55.0,19.343,19.332,8.069]
[1693899134114,63.065,19.343,19.332,8.069]
[1693899134900,96.7052,19.342,19.332,8.069]
[1693899135101,55.0,19.341,19.332,8.069]
[1693899136597,8.066,19.34,19.332,8.069]
[1693899145817,55.0,19.341,19.332,8.069]
[1693899147332,63.065,19.341,19.332,8.069]
[1693899149703,8.065,19.341,19.332,8.069]
[1693899156219,96.7052,19.342,19.332,8.069]
[1693899156831,96.7052,19.342,19.332,63.43748578]
[1693899157307,8.062,19.348,19.332,63.43748578]
[1693899157513,103.1116,19.348,19.332,63.43748578]
[1693899157709,3.31384792,19.347,19.332,63.43748578]
[1693899157911,58.31384792,19.347,19.332,63.43748578]
[1693899158404,66.37684792,19.347,19.332,63.43748578]
[1693899158609,66.37684792,19.347,19.34,26.73]
[1693899158610,3.31384792,19.347,19.34,26.73]
[1693899158806,3.31384792,19.353,19.342,193.876]
[1693899159205,3.31384792,19.354,19.342,193.876]
[1693899159419,11.37384792,19.354,19.342,90.992]
[1693899159621,8.06,19.354,19.342,90.992]
[1693899160812,3.31384792,19.353,19.342,90.992]
[1693899161025,11.37384792,19.353,19.342,90.992]
[1693899161226,8.06,19.353,19.342,90.992]
[1693899164531,8.06,19.354,19.342,90.992]
[1693899164722,57.23694989,19.353,19.342,90.992]
[1693899165730,55.0,19.353,19.342,90.992]
[1693899168832,8.06,19.354,19.342,90.992]
[1693899169034,55.0,19.353,19.342,90.992]
[1693899169734,2.04552427,19.352,19.342,90.992]
[1693899170230,8.061,19.352,19.342,90.992]
[1693899170627,63.06,19.353,19.342,90.992]
[1693899173740,8.06,19.355,19.342,90.992]
[1693899174035,8.06,19.355,19.35,26.73]
[1693899174719,159.602,19.361,19.35,26.73]
[1693899174924,8.059,19.356,19.35,34.791]
[1693899176219,56.817,19.361,19.35,34.791]
[1693899176430,32.24571452,19.359,19.35,34.791]
[1693899176831,55.0,19.358,19.35,34.791]
[1693899177030,4.18771452,19.357,19.35,34.791]
[1693899180439,8.058,19.358,19.35,34.791]
[1693899180440,8.055,19.365,19.35,91.638]
[1693899180739,94.4825,19.366,19.35,91.638]
[1693899181035,4.40767567,19.365,19.36,26.73]
[1693899181240,4.40767567,19.365,19.359,8.057]
[1693899181241,12.46267567,19.365,19.359,8.057]
[1693899181546,8.055,19.365,19.358,8.058]
[1693899181843,10.0590226,19.364,19.358,8.058]
[1693899182144,8.056,19.364,19.358,8.058]
[1693899184740,105.4144,19.366,19.358,8.058]
[1693899184950,105.4144,19.366,19.36,26.73]
[1693899185144,105.4144,19.366,19.36,34.787]
[1693899185352,8.055,19.366,19.36,34.787]
[1693899186250,8.055,19.366,19.36,26.73]
[1693899187250,8.055,19.366,19.36,34.787]
[1693899187951,8.055,19.366,19.36,26.73]
[1693899188352,1.94402529,19.365,19.36,34.787]
[1693899188550,3.15063934,19.368,19.36,8.057]
[1693899188852,78.15063934,19.368,19.36,34.787]
[1693899189238,23.15063934,19.368,19.36,34.787]
[1693899189850,11.20463934,19.368,19.36,34.787]
[1693899191262,3.15063934,19.368,19.36,34.787]
[1693899191466,23.15063934,19.368,19.36,34.787]
[1693899192148,31.20463934,19.368,19.36,34.787]
[1693899193772,23.15063934,19.368,19.36,34.787]
[1693899194074,20.0,19.369,19.36,34.787]
[1693899194271,2.36703286,19.368,19.36,34.787]
[1693899195465,10.42103286,19.368,19.36,34.787]
[1693899197559,8.054,19.368,19.36,34.787]
[1693899200268,2.11024955,19.367,19.36,34.787]
[1693899200475,8.055,19.366,19.36,26.73]
[1693899200963,34.079,19.366,19.36,26.73]
[1693899201163,2.59553896,19.365,19.36,26.73]
[1693899201363,8.056,19.364,19.356,8.059]
[1693899201563,8.056,19.364,19.355,8.059]
[1693899204071,8.056,19.364,19.351,72.505667]
[1693899204276,2.85469994,19.363,19.351,72.505667]
[1693899204578,2.85469994,19.363,19.353,34.102]
[1693899204579,8.056,19.363,19.353,34.102]
[1693899205278,8.056,19.363,19.353,8.06]
[1693899205775,2.50874436,19.362,19.35,26.73]
[1693899205964,8.058,19.359,19.35,34.791]
[1693899209490,55.0,19.358,19.35,34.791]
[1693899209673,8.059,19.357,19.35,34.791]
[1693899210479,63.058,19.358,19.35,34.791]
[1693899216689,55.0,19.358,19.35,34.791]
[1693899218096,55.0,19.359,19.35,34.791]
[1693899218787,63.058,19.359,19.35,34.791]
[1693899219275,55.0,19.359,19.35,34.791]
[1693899220577,63.058,19.359,19.35,34.791]
[1693899221472,55.0,19.359,19.35,34.791]
[1693899226497,63.058,19.359,19.35,34.791]
[1693899235603,55.0,19.359,19.35,34.791]
[1693899235901,55.0,19.358,19.35,34.791]
[1693899236088,55.0,19.36,19.35,34.791]
[1693899236906,63.058,19.36,19.35,34.791]
[1693899237702,55.0,19.36,19.35,34.791]
[1693899237891,63.058,19.36,19.35,34.791]
[1693899238595,95.0317,19.364,19.35,34.791]
[1693899238790,95.0317,19.364,19.35,90.15948578]
[1693899239192,83.519,19.37,19.35,90.15948578]
[1693899239395,3.93568075,19.368,19.35,90.15948578]
[1693899240402,3.93568075,19.368,19.36,26.73]
[1693899240602,3.93568075,19.368,19.362,8.056]
[1693899240787,23.93568075,19.369,19.362,8.056]
[1693899241700,3.93568075,19.369,19.362,8.056]
[1693899241896,12.20984154,19.37,19.362,8.056]
[1693899242092,20.0,19.369,19.362,8.056]
[1693899242293,4.15684154,19.368,19.362,8.056]
[1693899242790,59.15684154,19.368,19.362,8.056]
[1693899245486,4.15684154,19.368,19.362,8.056]
[1693899245691,116.6843,19.373,19.362,8.056]
[1693899245692,4.15684154,19.37,19.362,8.056]
[1693899245887,4.15684154,19.372,19.362,8.056]
[1693899246893,67.20884154,19.372,19.362,8.056]
[1693899270028,59.15684154,19.372,19.362,8.056]
[1693899270217,67.20884154,19.372,19.362,8.056]
[1693899277721,67.20884154,19.372,19.36,26.73]
[1693899277722,118.6636,19.371,19.36,26.73]
[1693899277922,90.871,19.368,19.357,8.059]
[1693899278220,4.40767567,19.367,19.357,8.059]
[1693899278426,8.056,19.364,19.357,8.059]
[1693899278641,4.40767567,19.363,19.357,8.059]
[1693899278828,12.46367567,19.363,19.357,8.059]
[1693899279133,8.056,19.363,19.35,42.56832643]
[1693899279324,8.058,19.36,19.353,8.06]
[1693899279637,8.058,19.358,19.353,8.06]
[1693899280035,34.093,19.358,19.35,26.73]
[1693899280222,2.25716834,19.357,19.35,26.73]
[1693899280429,55.0,19.357,19.35,34.791]
[1693899281635,55.0,19.358,19.35,34.791]
[1693899283237,94.5642,19.363,19.35,34.791]
[1693899283431,2.42734555,19.362,19.35,34.791]
[1693899283626,8.053,19.37,19.35,60.75578249]
[1693899283845,28.054,19.369,19.36,26.73]
[1693899284137,4.40767567,19.368,19.362,8.056]
[1693899286238,59.40767567,19.368,19.362,8.056]
[1693899286937,55.0,19.368,19.362,8.056]
[1693899287843,63.054,19.368,19.362,8.056]
[1693899288046,2.05176549,19.367,19.362,8.056]
[1693899288231,55.0,19.367,19.362,8.056]
[1693899292044,63.054,19.367,19.362,8.056]
[1693899292545,63.054,19.367,19.361,8.057]
[1693899294949,63.054,19.367,19.36,34.787]
[1693899295953,1.98276552,19.366,19.356,8.059]
[1693899296154,8.056,19.363,19.356,8.059]
[1693899296350,2.53170733,19.362,19.356,8.059]
[1693899298355,10.58870733,19.362,19.356,8.059]
[1693899298546,8.057,19.362,19.356,8.059]
[1693899302653,8.056,19.363,19.356,8.059]
[1693899303855,137.821,19.367,19.356,8.059]
[1693899304162,8.056,19.365,19.356,8.059]
[1693899304463,58.9197497,19.364,19.356,8.059]
[1693899305162,3.9197497,19.364,19.356,8.059]
[1693899305362,11.9757497,19.364,19.356,8.059]
[1693899306446,8.056,19.364,19.356,8.059]
[1693899307561,8.055,19.365,19.356,8.059]
[1693899307760,3.9197497,19.364,19.356,8.059]
[1693899308465,58.9197497,19.365,19.356,8.059]
[1693899309354,66.9747497,19.365,19.356,8.059]
[1693899309664,89.081,19.365,19.356,8.059]
[1693899309861,2.91219604,19.364,19.356,8.059]
[1693899310051,8.056,19.363,19.356,8.059]
[1693899313461,8.056,19.363,19.355,8.059]
[1693899313668,56.97320468,19.362,19.35,26.73]
[1693899313966,34.093,19.359,19.35,26.73]
[1693899314351,8.059,19.356,19.35,26.73]
[1693899314959,8.059,19.356,19.35,34.791]
[1693899316971,8.059,19.356,19.35,26.73]
[1693899317163,8.059,19.357,19.35,34.791]
[1693899317361,55.0,19.356,19.35,34.791]
[1693899319371,55.0,19.357,19.35,34.791]
[1693899320869,55.0,19.358,19.35,34.791]
[1693899321268,63.058,19.358,19.35,34.791]
[1693899322578,55.0,19.358,19.35,34.791]
[1693899325373,99.3245,19.361,19.35,34.791]
[1693899325673,99.3245,19.361,19.351,0.53693469]
[1693899325871,8.057,19.362,19.354,8.06]
[1693899326076,8.057,19.361,19.354,8.06]
[1693899326670,55.0,19.36,19.354,8.06]
[1693899327974,55.0,19.361,19.354,8.06]
[1693899330670,63.057,19.361,19.354,8.06]
[1693899330869,89.088,19.361,19.35,26.73]
[1693899331383,8.059,19.357,19.35,34.791]
[1693899331575,55.0,19.356,19.35,34.791]
[1693899331966,8.059,19.357,19.35,34.791]
[1693899332179,55.0,19.356,19.35,34.791]
[1693899332778,8.058,19.358,19.35,34.791]
[1693899332779,55.0,19.357,19.35,34.791]
[1693899333478,63.059,19.357,19.343,15.88217053]
[1693899333783,8.06,19.354,19.346,8.063]
[1693899333974,4.40767567,19.352,19.346,8.063]
[1693899337692,12.46767567,19.355,19.346,8.063]
[1693899337880,55.0,19.354,19.346,8.063]
[1693899338080,4.40767567,19.353,19.346,8.063]
[1693899338394,55.0,19.354,19.346,8.063]
[1693899339193,2.01297718,19.353,19.346,8.063]
[1693899339383,2.75813927,19.354,19.346,8.063]
[1693899345595,8.059,19.355,19.346,8.063]
[1693899347784,8.059,19.355,19.347,0.53693469]
[1693899347985,8.059,19.355,19.347,8.062]
[1693899351299,55.0,19.354,19.347,8.062]
[1693899351495,8.061,19.352,19.342,66.7717518]
[1693899351797,8.062,19.35,19.344,8.064]
[1693899354294,8.061,19.351,19.344,8.064]
[1693899354500,8.06,19.353,19.344,8.064]
[1693899354700,55.0,19.352,19.345,0.53693469]
[1693899355001,55.0,19.352,19.347,8.063]
[1693899355190,63.061,19.352,19.347,8.063]
[1693899357391,63.061,19.352,19.342,26.056]
[1693899357598,63.061,19.352,19.344,8.064]
[1693899358591,55.0,19.352,19.344,8.064]
[1693899359199,2.06718016,19.352,19.344,8.064]
[1693899359398,8.061,19.352,19.344,8.064]
[1693899359698,55.0,19.351,19.344,8.064]
[1693899362709,55.0,19.352,19.344,8.064]
[1693899363384,63.061,19.352,19.344,8.064]
[1693899363883,55.0,19.352,19.344,8.064]
[1693899365394,63.061,19.352,19.344,8.064]
[1693899368407,63.061,19.352,19.345,0.53693469]
[1693899368593,63.061,19.352,19.345,8.60093469]
[1693899368793,63.061,19.352,19.345,8.064]
[1693899383702,55.0,19.352,19.345,8.064]
[1693899384211,63.061,19.352,19.345,8.064]
[1693899385417,55.0,19.352,19.345,8.064]
[1693899389924,2.91022861,19.35,19.34,26.73]
[1693899390101,8.063,19.348,19.342,8.065]
[1693899390300,55.0,19.347,19.342,8.065]
[1693899390511,63.063,19.347,19.342,8.065]
[1693899391107,63.063,19.347,19.34,26.73]
[1693899391108,63.063,19.347,19.341,8.065]
[1693899392005,63.063,19.347,19.342,0.53693469]
[1693899392412,63.063,19.347,19.342,8.065]
[1693899393334,55.0,19.347,19.34,26.73]
[1693899393509,63.063,19.347,19.342,8.065]
[1693899397017,55.0,19.347,19.342,8.065]
[1693899397322,63.063,19.347,19.342,8.065]
[1693899398323,104.4138,19.35,19.343,0.53693469]
[1693899398506,55.0,19.349,19.344,8.064]
[1693899399420,8.062,19.348,19.342,8.064]
[1693899413537,8.062,19.348,19.34,34.795]
[1693899413713,81.048,19.349,19.34,34.795]
[1693899413714,8.063,19.346,19.341,8.065]
[1693899414733,8.063,19.346,19.34,26.73]
[1693899414921,2.42775256,19.345,19.34,26.73]
[1693899415120,10.49175256,19.345,19.339,8.066]
[1693899415517,8.064,19.345,19.339,8.066]
[1693899420744,8.063,19.347,19.339,8.066]
[1693899421041,55.0,19.346,19.341,8.065]
[1693899422170,26.045,19.351,19.341,8.065]
[1693899422474,3.02151185,19.35,19.341,8.065]
[1693899422663,11.08351185,19.35,19.341,8.065]
[1693899423168,8.062,19.35,19.341,8.065]
[1693899423369,58.72406121,19.349,19.341,8.065]
[1693899423572,8.062,19.348,19.341,8.065]
[1693899425373,8.062,19.348,19.336,15.43898655]
[1693899425374,55.0,19.347,19.336,15.43898655]
[1693899425572,34.118,19.344,19.336,23.50598655]
[1693899425770,3.69381438,19.343,19.336,8.067]
[1693899425963,8.065,19.342,19.336,8.067]
[1693899430974,2.02631723,19.344,19.336,34.132]
[1693899431276,41.85361392,19.356,19.337,20.53693469]
[1693899431277,8.061,19.352,19.337,20.53693469]
[1693899431475,29.05571614,19.354,19.34,117.731]
[1693899431476,8.061,19.351,19.34,117.731]
[1693899431681,8.062,19.35,19.341,0.53693469]
[1693899431976,8.062,19.35,19.343,8.064]
[1693899432161,106.035,19.352,19.343,8.064]
[1693899432358,2.34999515,19.351,19.343,8.064]
[1693899433372,65.41099515,19.351,19.343,8.064]
[1693899441988,57.34999515,19.351,19.343,8.064]
[1693899443484,65.41099515,19.351,19.343,8.064]
[1693899462284,10.41099515,19.351,19.343,8.064]
[1693899463196,2.34999515,19.351,19.343,8.064]
[1693899463499,3.0347513,19.353,19.346,34.113]
[1693899463702,4.16144204,19.354,19.346,8.063]
[1693899463893,8.06,19.353,19.346,8.063]
[1693899464397,4.40767567,19.352,19.346,8.063]
[1693899464592,12.46867567,19.352,19.346,8.063]
[1693899465805,4.40767567,19.352,19.346,64.922]
[1693899465998,4.40767567,19.356,19.347,20.0]
[1693899466297,82.827,19.366,19.347,20.0]
[1693899466298,4.40767567,19.362,19.353,193.76]
[1693899466898,4.40767567,19.364,19.353,193.76]
[1693899467293,12.46167567,19.367,19.354,0.53693469]
[1693899467601,12.46167567,19.367,19.357,34.093]
[1693899467804,55.0,19.366,19.357,34.093]
[1693899467999,4.40767567,19.365,19.357,34.093]
[1693899470098,8.054,19.369,19.357,34.093]
[1693899470292,79.40767567,19.368,19.36,26.73]
[1693899470494,79.40767567,19.368,19.362,8.056]
[1693899470892,87.46167567,19.368,19.362,8.056]
[1693899471610,4.40767567,19.368,19.362,8.056]
[1693899471793,4.40767567,19.37,19.362,8.056]
[1693899472606,12.46067567,19.37,19.362,8.056]
[1693899473008,55.0,19.369,19.362,8.056]
[1693899473205,4.40767567,19.368,19.362,8.056]
[1693899475401,55.0,19.369,19.362,8.056]
[1693899475597,2.5413083,19.369,19.362,8.056]
[1693899476602,8.054,19.368,19.362,8.056]
[1693899481517,8.054,19.368,19.36,34.787]
[1693899481814,8.054,19.368,19.357,15.46952478]
[1693899481815,64.848,19.368,19.357,8.058]
[1693899482023,59.40767567,19.367,19.357,8.058]
[1693899482317,8.056,19.364,19.357,8.058]
[1693899483516,55.0,19.363,19.354,41.64953718]
[1693899483719,8.057,19.362,19.356,8.059]
[1693899484417,55.0,19.363,19.356,8.059]
[1693899485919,89.085,19.363,19.354,15.61053718]
[1693899486122,89.085,19.363,19.355,0.53693469]
[1693899486319,98.83917567,19.362,19.347,35.53925618]
[1693899486504,8.058,19.359,19.35,34.791]
[1693899486704,4.40767567,19.358,19.35,34.791]
[1693899487017,8.059,19.356,19.351,0.53693469]
[1693899487319,8.058,19.358,19.351,8.061]
[1693899487514,55.0,19.357,19.351,8.061]
[1693899488518,55.0,19.358,19.351,8.061]
[1693899488704,8.057,19.36,19.351,8.061]
[1693899488705,2.88121545,19.359,19.351,8.061]
[1693899488909,57.88121545,19.359,19.351,8.061]
[1693899489617,63.058,19.359,19.351,8.061]
[1693899491014,2.4309965,19.358,19.351,8.061]
[1693899491322,57.4309965,19.358,19.351,8.061]
[1693899491617,55.0,19.358,19.351,8.061]
[1693899495517,55.0,19.359,19.351,8.061]
[1693899495714,2.38559921,19.358,19.351,8.061]
[1693899495904,10.44359921,19.358,19.351,8.061]
[1693899496105,55.0,19.357,19.351,8.061]
[1693899500816,55.0,19.358,19.351,8.061]
[1693899501015,2.43696534,19.357,19.351,8.061]
[1693899502527,10.49596534,19.357,19.351,8.061]
[1693899502828,55.0,19.356,19.351,8.061]
[1693899503126,55.0,19.356,19.35,8.061]
[1693899503520,55.0,19.356,19.347,102.904]
[1693899503521,63.059,19.356,19.349,8.062]
[1693899504021,55.0,19.356,19.349,8.062]
[1693899509117,55.0,19.357,19.349,8.062]
[1693899509423,2.30198818,19.356,19.349,8.062]
[1693899509728,2.70476915,19.356,19.349,8.062]
[1693899510322,55.0,19.357,19.349,8.062]
[1693899510718,102.4885,19.362,19.35,27.26693469]
[1693899510908,58.05038272,19.361,19.353,8.06]
[1693899511113,8.058,19.36,19.353,8.06]
[1693899511325,58.05038272,19.359,19.353,8.06]
[1693899511729,55.0,19.359,19.353,8.06]
[1693899513533,63.058,19.359,19.353,8.06]
[1693899514032,63.058,19.359,19.352,8.061]
[1693899514925,63.058,19.359,19.35,26.73]
[1693899515132,2.48703321,19.358,19.351,8.061]
[1693899515325,8.059,19.357,19.351,8.061]
[1693899515529,63.059,19.356,19.35,34.791]
[1693899515828,8.059,19.356,19.35,34.791]
[1693899516016,55.0,19.355,19.35,34.791]
[1693899516627,55.0,19.356,19.351,0.53693469]
[1693899516829,55.0,19.356,19.351,8.59793469]
[1693899517031,55.0,19.356,19.351,8.061]
[1693899523130,63.059,19.356,19.351,8.061]
[1693899524835,55.0,19.356,19.351,8.061]
[1693899533051,55.0,19.356,19.352,0.53693469]
[1693899533349,55.0,19.356,19.353,8.06]
[1693899533553,102.4885,19.362,19.353,8.06]
[1693899533844,2.57195973,19.361,19.353,8.06]
[1693899534051,102.4885,19.362,19.354,0.53693469]
[1693899534440,102.4885,19.362,19.353,0.53693469]
[1693899535033,55.0,19.361,19.355,8.059]
[1693899535452,63.057,19.361,19.355,8.059]
[1693899536949,55.0,19.361,19.355,8.059]
[1693899537835,63.057,19.361,19.353,8.06]
[1693899547053,63.057,19.361,19.354,0.53693469]
[1693899547247,63.057,19.361,19.355,8.059]
[1693899549263,63.057,19.361,19.354,8.06]
[1693899549560,63.057,19.361,19.353,8.06]
[1693899554162,63.057,19.361,19.354,0.53693469]
[1693899554361,63.057,19.361,19.353,8.06]
[1693899557167,2.04858839,19.36,19.353,8.06]
[1693899557366,8.058,19.359,19.353,8.06]
[1693899563457,8.058,19.359,19.352,8.061]
[1693899569975,8.058,19.359,19.35,34.791]
[1693899570279,55.0,19.358,19.351,0.53693469]
[1693899570474,8.059,19.357,19.351,8.061]
[1693899570679,55.0,19.356,19.351,8.061]
[1693899570978,63.059,19.356,19.351,8.061]
[1693899571365,63.059,19.356,19.35,34.791]
[1693899571564,63.059,19.356,19.351,0.53693469]
[1693899572278,63.059,19.356,19.351,8.061]
[1693899573670,55.0,19.356,19.351,8.061]
[1693899574384,63.059,19.356,19.351,8.061]
[1693899574686,120.4615,19.362,19.351,8.061]
[1693899574874,8.057,19.36,19.352,0.53693469]
[1693899575086,57.3306065,19.359,19.354,8.06]
[1693899575274,55.0,19.359,19.354,8.06]
[1693899575477,8.057,19.36,19.354,8.06]
[1693899576984,55.0,19.359,19.354,8.06]
[1693899577587,8.057,19.36,19.354,8.06]
[1693899586904,8.057,19.36,19.354,49.82950904]
[1693899598702,8.057,19.361,19.354,49.82950904]
[1693899598906,55.0,19.36,19.354,49.82950904]
[1693899600705,8.058,19.359,19.354,8.06]
[1693899600894,55.0,19.358,19.35,26.73]
[1693899601090,8.059,19.356,19.35,26.73]
[1693899601401,8.059,19.356,19.351,0.53693469]
[1693899605999,8.059,19.356,19.35,34.791]
[1693899607717,8.059,19.356,19.35,26.73]
[1693899608411,55.0,19.355,19.35,26.73]
[1693899608712,94.22377333,19.354,19.34,26.73]
[1693899608914,55.0,19.353,19.341,0.53693469]
[1693899609105,34.109,19.35,19.341,0.53693469]
[1693899609614,55.0,19.349,19.341,8.60193469]
[1693899609818,8.063,19.347,19.341,8.60193469]
[1693899610500,55.0,19.346,19.341,0.53693469]
[1693899610708,34.117,19.345,19.34,26.73]
[1693899610910,55.0,19.344,19.332,97.51120268]
[1693899611114,8.065,19.342,19.333,0.53693469]
[1693899611312,8.065,19.342,19.333,8.60493469]
[1693899616526,55.0,19.341,19.333,8.60493469]
[1693899616818,8.066,19.339,19.333,8.068]
[1693899617012,8.066,19.34,19.334,0.53693469]
[1693899617421,8.066,19.34,19.334,8.60493469]
[1693899617724,8.066,19.34,19.334,8.068]
[1693899618023,8.066,19.34,19.335,0.53693469]
[1693899623516,122.3644,19.344,19.335,8.60493469]
[1693899623713,55.0,19.343,19.335,8.068]
[1693899623915,55.0,19.343,19.336,0.53693469]
[1693899624114,63.065,19.343,19.337,8.067]
[1693899626209,55.0,19.343,19.337,8.067]
[1693899626618,96.3094,19.344,19.337,8.067]
[1693899627324,96.3094,19.344,19.338,0.53693469]
[1693899627526,8.063,19.346,19.339,8.066]
[1693899627724,55.0,19.345,19.34,26.73]
[1693899627911,55.0,19.345,19.339,8.066]
[1693899628106,63.064,19.345,19.339,8.066]
[1693899631825,63.064,19.345,19.334,26.067]
[1693899632134,63.064,19.345,19.336,8.067]
[1693899632329,63.064,19.345,19.337,0.53693469]
[1693899632526,55.0,19.345,19.337,8.60393469]
[1693899632717,8.062,19.348,19.337,34.66793469]
[1693899632922,2.42090153,19.35,19.34,26.73]
[1693899633235,10.48290153,19.35,19.341,8.60193469]
[1693899633438,8.062,19.35,19.341,8.60193469]
[1693899633921,55.0,19.349,19.341,8.60193469]
[1693899634322,63.062,19.349,19.341,8.60193469]
[1693899635927,63.062,19.349,19.341,8.065]
[1693899646335,63.062,19.349,19.342,0.53693469]